bitfinex-derivatives/quotes_SOLF0:USTF0_20260129
["timestamp","ask_amount","ask_price","bid_price","bid_amount"]
[1769650170997,2.48470877,124.75,124.68,5.98076345]
[1769650171397,3.49690032,124.76,124.68,5.98076345]
[1769650171594,2.48470877,124.74,124.68,5.98076345]
[1769650172000,3.49690032,124.76,124.68,5.98076345]
[1769650172200,2.48470877,124.74,124.68,3.49605468]
[1769650173805,2.48470877,124.74,124.68,5.98076345]
[1769650174106,2.48470877,124.74,124.68,13.20956345]
[1769650174502,2.48470877,124.77,124.71,3.49605468]
[1769650174706,5.98160909,124.78,124.71,5.98076345]
[1769650174907,5.98160909,124.78,124.72,2.48470877]
[1769650175106,2.48470877,124.75,124.69,13.20856345]
[1769650175310,2.48470877,124.75,124.69,10.72385468]
[1769650175510,2.48470877,124.75,124.69,3.49605468]
[1769650175702,2.47238358,124.75,124.69,3.49605468]
[1769650176010,2.47238358,124.74,124.67,5.96843826]
[1769650176209,2.47238358,124.73,124.67,5.96843826]
[1769650176411,2.47238358,124.74,124.67,5.96843826]
[1769650177207,2.47238358,124.73,124.67,3.49605468]
[1769650177610,2.47238358,124.7,124.67,3.49605468]
[1769650177813,2.47238358,124.71,124.67,3.49605468]
[1769650181608,9.69908358,124.72,124.67,3.49605468]
[1769650188619,2.47238358,124.68,124.62,3.49605468]
[1769650189208,9.70128358,124.68,124.63,3.49605468]
[1769650194221,7.2296,124.67,124.61,3.49605468]
[1769650194415,9.70198358,124.67,124.61,3.49605468]
[1769650195231,13.02996101,124.66,124.59,5.88234609]
[1769650195431,2.47238358,124.65,124.59,3.40996251]
[1769650195726,2.47238358,124.65,124.59,10.64356251]
[1769650196130,2.47238358,124.65,124.6,3.40996251]
[1769650196440,13.02996101,124.66,124.6,3.40996251]
[1769650199936,5.79966101,124.65,124.6,3.40996251]
[1769650200141,13.03036101,124.65,124.6,3.40996251]
[1769650200441,3.32727743,124.63,124.56,5.88234609]
[1769650200636,10.55907743,124.63,124.56,20.40996251]
[1769650200836,13.03146101,124.63,124.56,22.88234609]
[1769650201029,2.47238358,124.65,124.59,3.40996251]
[1769650201230,2.47238358,124.65,124.6,3.40996251]
[1769650201437,3.32727743,124.66,124.6,5.88234609]
[1769650202040,7.2307,124.65,124.6,5.88234609]
[1769650202444,3.32727743,124.65,124.6,3.40996251]
[1769650202840,3.32727743,124.65,124.59,2.47238358]
[1769650203046,7.2313,124.64,124.59,2.47238358]
[1769650203843,3.32727743,124.65,124.59,2.47238358]
[1769650204043,3.32727743,124.65,124.59,13.11644609]
[1769650204243,3.32727743,124.65,124.6,2.47238358]
[1769650204640,10.55787743,124.65,124.6,2.47238358]
[1769650205041,10.55787743,124.65,124.59,5.88234609]
[1769650206343,3.32727743,124.65,124.59,13.11634609]
[1769650206845,3.32727743,124.64,124.58,2.47238358]
[1769650207045,5.79966101,124.64,124.57,13.11714609]
[1769650207345,3.32727743,124.64,124.58,5.88234609]
[1769650207542,3.32727743,124.64,124.58,13.11644609]
[1769650208848,5.79966101,124.68,124.61,5.88234609]
[1769650209050,3.32727743,124.68,124.62,2.47238358]
[1769650209545,3.32727743,124.67,124.61,5.88234609]
[1769650210437,7.2301,124.66,124.61,5.88234609]
[1769650211549,7.2301,124.66,124.62,2.47238358]
[1769650211550,10.55737743,124.66,124.62,2.47238358]
[1769650211743,10.55737743,124.66,124.61,2.47238358]
[1769650212139,114.91588358,124.69,124.62,2.47238358]
[1769650212140,3.32727743,124.68,124.62,2.47238358]
[1769650212544,3.32727743,124.68,124.64,2.47238358]
[1769650213458,3.32727743,124.68,124.66,2.47238358]
[1769650213657,3.32727743,124.71,124.66,2.47238358]
[1769650214050,3.32727743,124.71,124.63,3.40996251]
[1769650214252,3.32727743,124.71,124.66,2.47238358]
[1769650214455,1.25385916,124.69,124.6,129.5194]
[1769650214750,1.25385916,124.69,124.62,2.47238358]
[1769650215053,1.25385916,124.68,124.62,9.70458358]
[1769650215355,2.47238358,124.7,124.62,9.70458358]
[1769650215356,1.25385916,124.7,124.66,2.47238358]
[1769650218859,1.25385916,124.73,124.68,2.47238358]
[1769650219752,1.25385916,124.73,124.7,2.47238358]
[1769650220753,1.25385916,124.75,124.7,2.47238358]
[1769650220955,8.47795916,124.77,124.71,9.69958358]
[1769650221255,1.25385916,124.8,124.73,2.47238358]
[1769650221564,1.25385916,124.79,124.73,2.47238358]
[1769650222958,1.25385916,124.79,124.74,2.47238358]
[1769650223158,8.47655916,124.79,124.72,7.2266]
[1769650223461,1.25385916,124.78,124.73,2.47238358]
[1769650225057,1.24676151,124.8,124.74,2.47238358]
[1769650226456,8.46876151,124.8,124.74,2.47238358]
[1769650229459,7.2228,124.79,124.74,2.47238358]
[1769650230767,8.46926653,124.79,124.74,2.47238358]
[1769650230961,8.46926653,124.79,124.73,2.47238358]
[1769650232169,8.46926653,124.79,124.74,2.47238358]
[1769650233173,174.50075011,124.81,124.74,5.73678081]
[1769650233468,172.02836653,124.81,124.75,2.47238358]
[1769650233666,8.46836653,124.81,124.75,5.73678081]
[1769650233863,7.2221,124.8,124.75,5.73678081]
[1769650235567,1.24646653,124.81,124.75,5.73432095]
[1769650235568,8.46786653,124.81,124.75,5.73432095]
[1769650236771,1.24646653,124.79,124.72,10.49079723]
[1769650236972,3.71639025,124.79,124.73,2.46992372]
[1769650237173,3.71639025,124.79,124.72,12.96072095]
[1769650238162,1.24646653,124.78,124.72,3.26439723]
[1769650238367,1.24646653,124.78,124.72,2.46992372]
[1769650238564,3.71639025,124.78,124.71,5.73432095]
[1769650238767,10.93949025,124.78,124.71,12.96142095]
[1769650240378,8.46956653,124.78,124.73,2.46992372]
[1769650248881,7.2238,124.77,124.73,2.46992372]
[1769650250680,1.24646653,124.74,124.66,3.26439723]
[1769650250869,112.3841,124.76,124.6,17.0]
[1769650250870,1.24646653,124.69,124.63,2.46992372]
[1769650251270,1.24646653,124.69,124.61,5.73432095]
[1769650251475,1.24646653,124.68,124.62,3.26439723]
[1769650251676,1.24646653,124.68,124.63,2.46992372]
[1769650251884,7.2289,124.69,124.63,2.46992372]
[1769650252980,8.47536653,124.69,124.63,2.46992372]
[1769650253583,8.47536653,124.69,124.62,10.49659723]
[1769650253781,7.2277,124.7,124.64,3.26439723]
[1769650253987,1.24646653,124.71,124.65,5.73432095]
[1769650254380,173.6871,124.72,124.66,5.73432095]
[1769650254779,173.6871,124.72,124.67,5.73432095]
[1769650255582,7.2271,124.72,124.67,5.73432095]
[1769650255776,1.24646653,124.73,124.67,3.26439723]
[1769650256578,3.71986068,124.72,124.65,5.76844546]
[1769650256986,3.71986068,124.72,124.65,3.29852174]
[1769650258385,7.2272,124.71,124.65,3.29852174]
[1769650258890,7.2272,124.71,124.63,10.53022174]
[1769650258891,8.47773696,124.7,124.63,10.53022174]
[1769650259083,10.94766068,124.7,124.63,13.00014546]
[1769650259582,1.24993696,124.7,124.64,5.76844546]
[1769650262878,1.24993696,124.68,124.62,5.76844546]
[1769650263085,2.46992372,124.67,124.62,3.29852174]
[1769650263479,3.71986068,124.68,124.62,3.29852174]
[1769650263686,10.94886068,124.68,124.62,3.29852174]
[1769650264490,7.2296,124.67,124.62,3.29852174]
[1769650265891,7.2301,124.66,124.6,5.76844546]
[1769650267191,3.71986068,124.67,124.61,3.29852174]
[1769650267192,10.94936068,124.67,124.61,3.29852174]
[1769650267794,7.2302,124.66,124.61,3.29852174]
[1769650269389,7.2307,124.65,124.59,3.29852174]
[1769650269694,3.71986068,124.65,124.59,3.29852174]
[1769650269895,1.24993696,124.64,124.57,30.00314546]
[1769650270287,8.48173696,124.64,124.57,30.00314546]
[1769650270487,8.48173696,124.64,124.58,3.29852174]
[1769650271385,3.71986068,124.63,124.56,5.76844546]
[1769650271697,3.71986068,124.63,124.57,3.29852174]
[1769650272191,1.24993696,124.62,124.55,5.76844546]
[1769650272400,1.24993696,124.6,124.53,5.76844546]
[1769650272894,7.2342,124.59,124.53,5.76844546]
[1769650273297,7.2342,124.59,124.53,13.00594546]
[1769650273900,7.2348,124.58,124.52,3.29852174]
[1769650274198,3.71986068,124.58,124.52,3.29852174]
[1769650274493,3.71986068,124.57,124.5,3.29852174]
[1769650274697,1.24993696,124.56,124.5,3.29852174]
[1769650275395,1.24993696,124.56,124.5,5.76844546]
[1769650275600,3.71986068,124.55,124.47,3.29852174]
[1769650275793,1.24993696,124.55,124.49,5.76844546]
[1769650275999,1.24993696,124.55,124.45,112.6548]
[1769650276000,1.24993696,124.58,124.52,2.46992372]
[1769650276302,112.5251,124.6,124.53,5.76844546]
[1769650276303,1.24993696,124.6,124.53,5.76844546]
[1769650276496,1.24993696,124.6,124.55,2.46992372]
[1769650276798,1.24993696,124.6,124.55,2.372e-05]
[1769650277400,7.2342,124.59,124.55,2.372e-05]
[1769650278399,7.2342,124.59,124.54,2.46992372]
[1769650279292,7.2342,124.59,124.55,2.46992372]
[1769650279691,175.20323696,124.61,124.54,3.29852174]
[1769650279893,175.20323696,124.61,124.56,2.46992372]
[1769650280701,175.20323696,124.61,124.55,2.46992372]
[1769650280702,8.48353696,124.6,124.55,2.46992372]
[1769650281906,8.48413696,124.59,124.51,3.29852174]
[1769650282200,8.48413696,124.59,124.54,2.46992372]
[1769650282393,7.2348,124.58,124.54,2.46992372]
[1769650282592,7.2348,124.58,124.53,2.46992372]
[1769650282791,7.2348,124.58,124.54,2.46992372]
[1769650284502,7.2348,124.58,124.53,2.46992372]
[1769650285101,8.4903577,124.58,124.54,2.372e-05]
[1769650285302,8.4903577,124.58,124.53,2.46992372]
[1769650285902,7.2354,124.57,124.52,2.46992372]
[1769650287203,1.2555577,124.58,124.52,2.46992372]
[1769650287597,1.2555577,124.58,124.53,2.46992372]
[1769650288397,8.4903577,124.58,124.53,2.46992372]
[1769650289196,286.95482372,124.6,124.51,3.53889099]
[1769650289197,8.48855532,124.57,124.51,3.53889099]
[1769650289399,8.48855532,124.57,124.53,2.46992372]
[1769650290598,8.48855532,124.57,124.52,2.46992372]
[1769650290799,7.2347,124.59,124.54,2.46992372]
[1769650291003,7.2347,124.59,124.54,5.6840607]
[1769650291706,7.2332,124.61,124.56,2.46992372]
[1769650292004,7.2332,124.61,124.57,5.6840607]
[1769650292806,7.2332,124.61,124.56,2.46992372]
[1769650293005,7.2338,124.6,124.56,2.46992372]
[1769650293308,2.46992372,124.62,124.56,2.46992372]
[1769650293506,7.2336,124.6,124.56,2.46992372]
[1769650293806,7.2336,124.6,124.55,5.6840607]
[1769650293998,2.46992372,124.62,124.55,5.6840607]
[1769650295402,7.2332,124.61,124.55,5.6840607]
[1769650297597,7.2332,124.61,124.55,5.69175111]
[1769650300311,8.48595532,124.61,124.55,5.69175111]
[1769650300610,10.96356945,124.61,124.55,3.21413698]
[1769650301302,8.48645532,124.6,124.53,10.45173698]
[1769650301508,3.73036945,124.59,124.53,12.92935111]
[1769650302412,3.73036945,124.59,124.53,10.45173698]
[1769650302608,3.73036945,124.59,124.54,3.21413698]
[1769650302811,2.47761413,124.59,124.54,3.21413698]
[1769650303617,9.71131413,124.6,124.54,10.45113698]
[1769650304919,9.71131413,124.6,124.54,12.92875111]
[1769650305831,2.47761413,124.59,124.54,10.45113698]
[1769650306621,2.47761413,124.58,124.54,3.21413698]
[1769650307526,9.71251413,124.58,124.54,3.21413698]
[1769650308119,2.47761413,124.58,124.54,3.21413698]
[1769650308716,9.71181413,124.59,124.54,3.21413698]
[1769650310127,7.2342,124.59,124.55,3.21413698]
[1769650315531,1.25275532,124.61,124.55,3.21413698]
[1769650315724,3.73036945,124.61,124.55,3.21413698]
[1769650315925,9.71001413,124.62,124.56,3.26649993]
[1769650316128,9.71001413,124.62,124.56,5.74411406]
[1769650316534,9.71001413,124.62,124.56,3.26649993]
[1769650317034,7.233,124.61,124.56,3.26649993]
[1769650317235,2.47761413,124.6,124.54,3.26649993]
[1769650317433,3.73413946,124.61,124.54,3.26649993]
[1769650317737,2.47761413,124.6,124.54,3.26649993]
[1769650318137,3.73413946,124.61,124.55,3.26649993]
[1769650318338,10.96713946,124.61,124.55,3.26649993]
[1769650320436,10.96713946,124.61,124.55,10.50269993]
[1769650320831,9.71001413,124.62,124.56,3.26649993]
[1769650321133,7.2324,124.62,124.56,5.74411406]
[1769650322437,7.2324,124.62,124.56,12.98001406]
[1769650324240,9.71001413,124.62,124.56,12.98001406]
[1769650324542,10.96653946,124.62,124.56,12.98001406]
[1769650326046,173.32,124.64,124.57,3.26649993]
[1769650326047,2.47761413,124.63,124.57,3.26649993]
[1769650326843,3.73413946,124.63,124.57,3.26649993]
[1769650327445,3.73413946,124.6,124.55,3.26649993]
[1769650327647,2.47761413,124.6,124.55,3.26649993]
[1769650327838,2.47761413,124.61,124.55,3.26649993]
[1769650328438,9.71061413,124.61,124.55,10.50289993]
[1769650330547,9.71061413,124.61,124.55,12.98051406]
[1769650332850,8.48902533,124.62,124.57,3.26649993]
[1769650333148,7.2325,124.62,124.57,3.26649993]
[1769650336549,9.71011413,124.62,124.57,3.26649993]
[1769650338254,2.47761413,124.61,124.55,12.98051406]
[1769650338856,2.47761413,124.61,124.56,7.2358]
[1769650339754,8.48902533,124.62,124.55,5.74411406]
[1769650339755,2.47761413,124.6,124.55,10.50289993]
[1769650339954,2.47761413,124.61,124.55,10.50289993]
[1769650340250,3.73413946,124.61,124.55,10.50289993]
[1769650340856,2.47761413,124.6,124.55,10.50289993]
[1769650341053,3.73413946,124.61,124.56,7.2358]
[1769650341248,3.73413946,124.61,124.56,10.50229993]
[1769650341448,1.25652533,124.64,124.58,5.74411406]
[1769650341653,1.25652533,124.64,124.6,2.47761413]
[1769650342861,1.25652533,124.64,124.6,9.71111413]
[1769650344262,1.25652533,124.64,124.61,7.2329]
[1769650348256,1.25652533,124.64,124.6,9.71111413]
[1769650351461,1.25652533,124.64,124.6,7.2335]
[1769650354764,1.25111679,124.66,124.61,7.2327]
[1769650355070,3.72873092,124.66,124.61,7.2327]
[1769650355271,1.25111679,124.65,124.61,7.2327]
[1769650355476,1.25111679,124.65,124.6,10.74249589]
[1769650356278,3.72873092,124.62,124.56,3.50899589]
[1769650357373,3.72873092,124.62,124.57,7.2352]
[1769650357669,3.72873092,124.62,124.57,10.74419589]
[1769650359571,2.47755664,124.61,124.57,10.74419589]
[1769650361370,151.0137,124.68,124.57,10.74419589]
[1769650361371,11.21809524,124.69,124.61,3.50899589]
[1769650361569,1.25111679,124.69,124.64,5.98655253]
[1769650362179,1.25111679,124.69,124.64,3.50899589]
[1769650362781,1.25111679,124.69,124.64,13.21765253]
[1769650362983,1.25111679,124.69,124.64,5.98655253]
[1769650363568,1.25111679,124.69,124.64,3.50899589]
[1769650364272,1.25111679,124.72,124.65,3.50899589]
[1769650364470,3.72867343,124.72,124.66,3.50899589]
[1769650365282,3.72867343,124.72,124.67,7.2294]
[1769650366274,2.47755664,124.74,124.68,3.50899589]
[1769650366474,2.47755664,124.75,124.69,3.50899589]
[1769650366679,2.47755664,124.74,124.69,3.50899589]
[1769650366880,2.47755664,124.72,124.69,3.50899589]
[1769650367182,2.47755664,124.72,124.66,3.50899589]
[1769650368487,2.47755664,124.72,124.67,10.73789589]
[1769650368684,2.47755664,124.7,124.65,3.50899589]
[1769650368882,1.25111679,124.71,124.65,3.50899589]
[1769650368883,2.47755664,124.69,124.65,3.50899589]
[1769650371881,2.47755664,124.67,124.61,3.50899589]
[1769650372078,2.47755664,124.65,124.61,3.50899589]
[1769650376092,2.47755664,124.64,124.61,3.50899589]
[1769650378582,112.4266,124.71,124.62,3.27217396]
[1769650378583,2.47755664,124.67,124.62,3.27217396]
[1769650380395,2.47755664,124.67,124.63,7.2315]
[1769650380990,2.47755664,124.67,124.62,3.27217396]
[1769650380991,2.47755664,124.7,124.65,3.27217396]
[1769650381195,2.47755664,124.71,124.65,3.27217396]
[1769650381594,2.47755664,124.71,124.66,3.27217396]
[1769650381895,2.47755664,124.71,124.66,10.50217396]
[1769650382095,2.47755664,124.72,124.67,3.27217396]
[1769650382286,3.73105846,124.72,124.67,3.27217396]
[1769650382492,2.47755664,124.71,124.65,3.27217396]
[1769650383390,2.47755664,124.71,124.67,7.2291]
[1769650384398,2.47755664,124.71,124.66,3.27217396]
[1769650385300,2.47755664,124.71,124.66,10.50217396]
[1769650385488,3.73105846,124.72,124.66,12.9797306]
[1769650385896,3.73105846,124.7,124.64,3.27217396]
[1769650386093,3.73105846,124.7,124.64,10.50287396]
[1769650386289,3.73105846,124.7,124.65,3.27217396]
[1769650386490,9.70485664,124.71,124.65,3.27217396]
[1769650387900,10.95835846,124.71,124.65,3.27217396]
[1769650388095,2.47755664,124.7,124.65,3.27217396]
[1769650388292,3.73105846,124.69,124.63,10.50397396]
[1769650389498,3.73105846,124.69,124.63,12.9815306]
[1769650390203,1.25350182,124.69,124.63,12.9815306]
[1769650391500,3.73105846,124.69,124.63,12.9815306]
[1769650393195,3.73105846,124.69,124.63,10.50397396]
[1769650394598,3.73105846,124.69,124.63,12.9815306]
[1769650396498,1.25350182,124.69,124.63,12.9815306]
[1769650399209,1.25350182,124.68,124.63,3.27217396]
[1769650399411,3.73105846,124.68,124.61,12.9821306]
[1769650399609,3.73105846,124.68,124.62,3.27217396]
[1769650400306,10.96005846,124.68,124.62,10.50447396]
[1769650401303,3.73105846,124.67,124.6,340.67217396]
[1769650401509,2.47755664,124.66,124.6,29.9827306]
[1769650401705,2.47755664,124.66,124.61,3.27217396]
[1769650401909,3.73105846,124.67,124.61,3.27217396]
[1769650402903,8.48300182,124.67,124.62,3.27217396]
[1769650403708,2.47755664,124.68,124.62,10.50447396]
[1769650404008,2.47755664,124.68,124.63,3.27217396]
[1769650405412,9.70645664,124.68,124.63,3.27217396]
[1769650405615,7.2289,124.68,124.63,3.27217396]
[1769650406311,9.70585664,124.7,124.64,3.51682007]
[1769650406502,3.72692445,124.71,124.65,3.51682007]
[1769650406907,1.24936781,124.71,124.66,3.51682007]
[1769650407309,2.47755664,124.73,124.67,5.99437671]
[1769650407506,3.72692445,124.74,124.68,3.51682007]
[1769650407702,10.95122445,124.76,124.7,7.2277]
[1769650408112,10.95122445,124.76,124.7,10.74452007]
[1769650408811,175.94,124.79,124.72,3.42452091]
[1769650408812,3.72312129,124.78,124.72,3.42452091]
[1769650409002,1.24556465,124.78,124.72,5.90207755]
[1769650409507,8.46866465,124.78,124.72,5.90207755]
[1769650410109,7.2238,124.77,124.72,3.42452091]
[1769650410912,10.94752129,124.76,124.7,3.42452091]
[1769650411116,2.47755664,124.75,124.7,3.42452091]
[1769650411712,9.70245664,124.75,124.7,3.42452091]
[1769650411919,3.72312129,124.74,124.67,5.90207755]
[1769650412114,2.47755664,124.73,124.67,5.90207755]
[1769650412414,7.2261,124.73,124.68,3.42452091]
[1769650413216,3.72312129,124.74,124.68,3.42452091]
[1769650413916,1.24556465,124.74,124.68,5.90207755]
[1769650414419,1.24556465,124.76,124.7,5.90207755]
[1769650415320,7.2249,124.75,124.7,3.42452091]
[1769650415814,9.70305664,124.74,124.68,3.42452091]
[1769650416130,3.72312129,124.73,124.66,5.90207755]
[1769650416424,10.94922129,124.73,124.67,3.42452091]
[1769650418217,7.2261,124.73,124.68,5.90207755]
[1769650418512,7.2261,124.73,124.68,3.42452091]
[1769650421120,10.94511818,124.72,124.66,5.89737444]
[1769650421420,10.94511818,124.72,124.66,3.42452091]
[1769650422218,10.94561818,124.71,124.66,3.42452091]
[1769650422418,10.94561818,124.71,124.65,2.47285353]
[1769650423725,10.94561818,124.71,124.65,5.89737444]
[1769650424329,3.71841818,124.71,124.65,5.89737444]
[1769650424624,3.71841818,124.71,124.65,13.12797444]
[1769650424923,3.71841818,124.71,124.66,3.42452091]
[1769650424924,1.24556465,124.71,124.66,3.42452091]
[1769650425230,9.69955353,124.72,124.66,3.42452091]
[1769650426022,2.47285353,124.72,124.66,5.89737444]
[1769650426327,1.24556465,124.73,124.66,5.89737444]
[1769650426328,10.94481818,124.73,124.67,3.42452091]
[1769650426516,2.47285353,124.72,124.67,3.42452091]
[1769650427122,8.47196465,124.73,124.67,3.42452091]
[1769650427431,2.47285353,124.72,124.67,3.42452091]
[1769650430731,1.24556465,124.75,124.69,3.42452091]
[1769650430926,2.47285353,124.72,124.65,2.47285353]
[1769650431831,2.47285353,124.72,124.66,7.2298]
[1769650432927,2.47285353,124.72,124.67,3.42452091]
[1769650436131,9.69945353,124.72,124.67,3.42452091]
[1769650436338,2.47285353,124.71,124.66,10.77422563]
[1769650437131,2.47285353,124.71,124.66,3.54442563]
[1769650437132,2.47285353,124.7,124.66,3.54442563]
[1769650439141,2.47285353,124.7,124.64,10.77562563]
[1769650439332,5.77133439,124.7,124.64,10.77562563]
[1769650440936,12.99923439,124.7,124.64,10.77562563]
[1769650441237,2.47285353,124.67,124.62,3.54442563]
[1769650441436,2.47285353,124.66,124.62,3.54442563]
[1769650441838,13.00143439,124.66,124.6,331.07792563]
[1769650442036,2.47285353,124.64,124.6,3.54442563]
[1769650442342,2.47285353,124.66,124.6,3.54442563]
[1769650442540,2.47285353,124.68,124.62,6.01727916]
[1769650443239,2.47285353,124.68,124.62,3.54442563]
[1769650443537,2.47285353,124.65,124.6,3.54442563]
[1769650447145,2.47285353,124.65,124.6,10.77792563]
[1769650452538,2.47285353,124.63,124.58,3.54442563]
[1769650454547,2.47285353,124.63,124.58,10.77912563]
[1769650455445,5.77133439,124.62,124.56,340.84442563]
[1769650455645,2.47285353,124.6,124.56,323.84442563]
[1769650455849,2.47285353,124.6,124.56,3.54442563]
[1769650456051,2.47285353,124.59,124.54,10.78142563]
[1769650456347,2.47285353,124.59,124.54,3.54442563]
[1769650456551,2.47285353,124.58,124.52,326.43727916]
[1769650456751,2.47285353,124.58,124.53,3.54442563]
[1769650457051,5.77133439,124.59,124.53,3.54442563]
[1769650457950,5.77133439,124.59,124.53,10.78202563]
[1769650458755,2.47285353,124.58,124.53,10.78202563]
[1769650460358,2.47285353,124.57,124.52,327.6582]
[1769650460561,2.47285353,124.57,124.52,331.20262563]
[1769650460759,5.77133439,124.58,124.52,331.20262563]
[1769650461660,13.00613439,124.58,124.52,323.96442563]
[1769650462157,3.29848086,124.57,124.52,323.96442563]
[1769650462460,2.47285353,124.56,124.5,3.54442563]
[1769650462954,2.47285353,124.55,124.5,3.54442563]
[1769650463757,5.77133439,124.54,124.48,324.04442563]
[1769650463954,5.77133439,124.53,124.46,6.01727916]
[1769650464160,2.47285353,124.52,124.47,3.54442563]
[1769650464356,5.77133439,124.53,124.47,3.54442563]
[1769650465156,3.24519768,124.55,124.47,3.54442563]
[1769650465356,5.71805121,124.57,124.5,5.75702648]
[1769650465553,3.24519768,124.56,124.5,5.75702648]
[1769650466156,7.2362,124.56,124.51,5.75702648]
[1769650466362,3.24519768,124.58,124.52,5.75702648]
[1769650466961,7.2353,124.57,124.52,5.75702648]
[1769650467165,9.70815353,124.57,124.52,3.28417295]
[1769650467462,7.2359,124.56,124.5,5.75702648]
[1769650467664,5.71805121,124.56,124.5,3.28417295]
[1769650472066,3.24519768,124.56,124.5,5.75702648]
[1769650472867,3.24519768,124.56,124.51,2.47285353]
[1769650473268,3.24519768,124.56,124.52,2.47285353]
[1769650474162,3.24519768,124.56,124.51,2.47285353]
[1769650475973,10.49611705,124.57,124.52,2.47285353]
[1769650477065,3.26051705,124.57,124.52,5.92277686]
[1769650478469,3.26051705,124.63,124.53,5.92277686]
[1769650478663,3.26051705,124.63,124.58,2.47285353]
[1769650478866,3.26051705,124.63,124.57,2.47285353]
[1769650479069,5.73337058,124.63,124.56,5.92277686]
[1769650479471,7.2325,124.62,124.56,13.15857686]
[1769650479670,3.26051705,124.63,124.56,13.15857686]
[1769650479973,5.73337058,124.63,124.57,2.47285353]
[1769650481276,10.49231705,124.63,124.57,2.47285353]
[1769650481778,10.49231705,124.63,124.57,2.47708089]
[1769650482071,3.26051705,124.61,124.54,7.2366]
[1769650482278,5.73759794,124.6,124.54,2.47708089]
[1769650483281,10.49401705,124.6,124.55,2.47708089]
[1769650483478,10.49401705,124.6,124.54,2.47708089]
[1769650483479,3.26051705,124.6,124.54,2.47708089]
[1769650483871,7.2341,124.59,124.54,2.47708089]
[1769650485379,7.2341,124.59,124.54,5.92700422]
[1769650487083,7.2353,124.57,124.54,8.089e-05]
[1769650487279,7.2353,124.57,124.52,2.47708089]
[1769650487280,3.26051705,124.57,124.52,2.47708089]
[1769650487877,10.49581705,124.57,124.52,2.47708089]
[1769650488486,3.26051705,124.57,124.53,2.47708089]
[1769650488883,5.73759794,124.61,124.55,2.47708089]
[1769650489078,3.26051705,124.61,124.55,2.47708089]
[1769650489275,12.97059794,124.61,124.55,3.44992333]
[1769650489486,3.26051705,124.61,124.56,2.47708089]
[1769650490185,10.49351705,124.61,124.56,2.47708089]
[1769650490781,10.49351705,124.61,124.55,13.16340422]
[1769650491176,3.26051705,124.56,124.49,3.44992333]
[1769650491383,2.47708089,124.55,124.49,3.44992333]
[1769650492285,9.71358089,124.55,124.49,10.68982333]
[1769650492485,7.2365,124.55,124.49,13.16690422]
[1769650493691,7.2365,124.55,124.49,5.92700422]
[1769650494387,9.71358089,124.55,124.49,3.44992333]
[1769650494785,9.71408089,124.54,124.49,3.44992333]
[1769650497791,3.23780549,124.6,124.53,2.47708089]
[1769650497996,3.23780549,124.58,124.52,2.47708089]
[1769650498187,5.71488638,124.58,124.52,2.47708089]
[1769650498491,3.23780549,124.58,124.53,2.47708089]
[1769650499293,3.23780549,124.58,124.52,5.80300924]
[1769650499996,7.2341,124.59,124.53,5.80300924]
[1769650500183,3.23780549,124.6,124.55,2.47708089]
[1769650500694,10.47140549,124.6,124.55,2.47708089]
[1769650501389,10.47080549,124.61,124.55,2.47708089]
[1769650501785,3.23780549,124.61,124.55,2.47708089]
[1769650501986,5.71488638,124.61,124.55,2.47708089]
[1769650503394,7.2336,124.6,124.55,2.47708089]
[1769650503786,7.2341,124.59,124.55,2.47708089]
[1769650504096,7.2341,124.59,124.54,3.32592835]
[1769650504790,5.71488638,124.6,124.54,3.32592835]
[1769650505896,12.94878638,124.6,124.54,3.32592835]
[1769650508302,286.3382,124.63,124.52,2.47708089]
[1769650508303,5.71488638,124.59,124.52,2.47708089]
[1769650508502,5.71488638,124.59,124.52,5.80300924]
[1769650508705,5.71488638,124.58,124.52,5.80300924]
[1769650509204,3.23780549,124.58,124.52,5.80300924]
[1769650509404,10.47260549,124.58,124.52,5.80300924]
[1769650512094,3.23780549,124.57,124.52,3.32592835]
[1769650513202,3.23780549,124.56,124.51,2.47708089]
[1769650513407,2.47708089,124.53,124.47,5.80300924]
[1769650513606,2.47708089,124.58,124.52,3.32592835]
[1769650513908,3.23780549,124.58,124.52,5.80300924]
[1769650515307,10.47310549,124.58,124.52,5.80300924]
[1769650518016,10.47310549,124.58,124.52,13.04100924]
[1769650518216,3.23780549,124.58,124.52,13.04100924]
[1769650518513,5.71488638,124.6,124.53,5.80300924]
[1769650518816,3.23780549,124.6,124.54,9.71398089]
[1769650519406,10.47150549,124.6,124.54,9.71398089]
[1769650519808,10.47150549,124.6,124.54,13.03990924]
[1769650520107,5.71488638,124.62,124.56,3.32592835]
[1769650520309,5.71488638,124.62,124.56,5.80300924]
[1769650520508,10.47020549,124.62,124.56,5.80300924]
[1769650520705,10.47020549,124.62,124.57,2.47708089]
[1769650521311,10.47020549,124.62,124.56,13.03880924]
[1769650521613,7.2318,124.63,124.57,5.80300924]
[1769650522615,10.46960549,124.63,124.57,5.80300924]
[1769650522815,10.46880549,124.65,124.59,5.80300924]
[1769650523113,10.46880549,124.65,124.6,2.47708089]
[1769650523802,12.94488638,124.67,124.6,5.80300924]
[1769650524209,3.23780549,124.67,124.61,5.80300924]